bitfinex/quotes_SOLUSD_20260120
["timestamp","ask_amount","ask_price","bid_price","bid_amount"]
[1768885851596,2.42915818,133.11,133.08,4.26214696]
[1768885852695,9.91694095,133.12,133.08,4.26214696]
[1768885852902,7.64381762,133.11,133.08,4.26214696]
[1768885853075,2.42915818,133.11,133.08,4.26214696]
[1768885853401,2.46434403,133.13,133.09,4.14861432]
[1768885853586,7.67901352,133.12,133.08,4.14861432]
[1768885853769,5.21466949,133.11,133.08,4.14861432]
[1768885853973,4.89350221,133.12,133.08,4.14861432]
[1768885854221,5.21467706,133.11,133.08,4.14861432]
[1768885854374,4.89350221,133.12,133.08,4.14861432]
[1768885854696,7.64422355,133.11,133.08,4.14861432]
[1768885854886,2.46434403,133.12,133.09,4.14861432]
[1768885855085,5.21506903,133.11,133.09,4.14861432]
[1768885855290,4.89350221,133.13,133.09,4.14861432]
[1768885855584,5.21554294,133.12,133.09,4.14861432]
[1768885855786,5.21554294,133.11,133.09,4.14861432]
[1768885855998,4.89350221,133.13,133.09,4.14861432]
[1768885856209,5.21531094,133.12,133.09,4.14861432]
[1768885856378,5.21540401,133.11,133.09,4.14861432]
[1768885856578,4.89350221,133.13,133.09,4.14861432]
[1768885856780,5.21549938,133.12,133.09,11.66229212]
[1768885856993,5.21549938,133.11,133.09,11.66229212]
[1768885857193,4.89350221,133.13,133.09,11.66229212]
[1768885857481,5.21563548,133.12,133.09,11.66229212]
[1768885857686,4.89350221,133.13,133.09,11.66229212]
[1768885857894,5.21561789,133.12,133.09,4.14861432]
[1768885858092,4.89350221,133.13,133.09,4.14861432]
[1768885858285,4.89350221,133.12,133.09,4.14861432]
[1768885859406,2.42915818,133.12,133.09,4.14861432]
[1768885860501,4.89350221,133.13,133.09,11.66230229]
[1768885861284,5.21978875,133.12,133.09,4.14861432]
[1768885861606,2.42915818,133.12,133.09,4.14861432]
[1768885861907,4.89350221,133.11,133.06,4.14861432]
[1768885862097,2.42915818,133.08,133.05,11.66446925]
[1768885862402,2.42915818,133.08,133.05,4.14861432]
[1768885862699,4.9232022,133.08,133.05,4.08861436]
[1768885862898,2.42915818,133.07,133.05,4.08861436]
[1768885863106,2.42915818,133.06,133.03,7.5165998]
[1768885863284,2.42915818,133.07,133.03,7.5165998]
[1768885863978,2.35403818,133.07,133.03,7.5165998]
[1768885864299,2.42915818,133.08,133.03,7.5171014]
[1768885864607,2.42915818,133.07,133.03,7.5171014]
[1768885864899,2.42915818,133.08,133.04,4.14861432]
[1768885866585,2.42915818,133.08,133.05,4.14861432]
[1768885867903,2.42915818,133.07,133.05,4.14861432]
[1768885871106,2.52374399,133.09,133.05,4.14861432]
[1768885871286,18.98374399,133.11,133.06,4.14861432]
[1768885871496,2.42915818,133.09,133.06,4.14861432]
[1768885872002,2.42915818,133.08,133.06,4.14861432]
[1768885872203,2.42915818,133.09,133.06,4.14861432]
[1768885872391,2.52374399,133.1,133.06,4.14861432]
[1768885872590,2.42915818,133.09,133.07,4.14861432]
[1768885873001,2.42976364,133.09,133.07,4.14861432]
[1768885874509,2.42976364,133.09,133.07,11.6634479]
[1768885875278,2.42976364,133.1,133.08,4.14861432]
[1768885875483,16.46,133.11,133.08,4.14861432]
[1768885875681,7.6478559,133.1,133.08,4.14861432]
[1768885875878,2.42976364,133.1,133.08,4.14861432]
[1768885876208,2.42976364,133.1,133.08,11.66279772]
[1768885876410,2.42976364,133.1,133.08,4.14861432]
[1768885879297,2.42976364,133.1,133.07,4.14861432]
[1768885880415,2.42976364,133.09,133.07,4.14861432]
[1768885880602,2.42976364,133.1,133.07,4.14861432]
[1768885881211,2.42976364,133.1,133.07,11.66326601]
[1768885883231,2.42976364,133.1,133.02,77.96]
[1768885883232,4.95350763,133.08,133.04,4.23023043]
[1768885883552,2.52374399,133.09,133.05,11.74609649]
[1768885883716,4.95350763,133.09,133.06,4.23023043]
[1768885884090,2.52374399,133.1,133.06,11.74555778]
[1768885884290,7.63398642,133.09,133.06,11.74555778]
[1768885884491,2.52374399,133.1,133.06,11.74555778]
[1768885884710,10.15760302,133.09,133.06,11.74555778]
[1768885884904,4.95350763,133.09,133.06,4.23023043]
[1768885885108,2.42976364,133.08,133.05,11.74597903]
[1768885887012,2.42976364,133.06,133.03,4.23023043]
[1768885887587,4.95350763,133.07,133.04,4.23023043]
[1768885887804,2.42976364,133.06,133.04,4.23023043]
[1768885888009,4.95350763,133.06,133.03,4.23023043]
[1768885888295,7.8298696,133.05,133.01,4.23023043]
[1768885888499,2.42976364,133.02,133.01,4.23023043]
[1768885889202,2.42976364,133.03,133.01,4.23023043]
[1768885889513,2.42976364,133.03,132.98,18.79912839]
[1768885889514,2.42976364,133.02,132.99,4.23023043]
[1768885889816,2.42976364,133.01,132.99,4.23023043]
[1768885890019,2.52374399,133.03,132.99,4.23023043]
[1768885890314,2.42976364,133.02,133.0,4.23023043]
[1768885890895,2.42976364,133.03,133.0,4.23023043]
[1768885891295,2.42976364,133.03,133.01,4.23023043]
[1768885891696,4.44016163,133.04,133.0,11.74884697]
[1768885891922,2.42976364,133.02,133.0,11.74884697]
[1768885892220,4.44016163,133.04,133.0,11.74884697]
[1768885892420,2.42976364,133.03,133.0,11.74884697]
[1768885892718,4.44016163,133.04,132.97,0.1]
[1768885892921,4.44016163,133.0,132.97,0.1]
[1768885893100,2.42976364,132.98,132.97,0.1]
[1768885893520,4.44016163,133.01,132.97,4.33023043]
[1768885893716,2.42976364,132.99,132.97,4.33023043]
[1768885894222,4.44016163,133.01,132.97,0.1]
[1768885894419,4.44016163,133.01,132.97,4.33023043]
[1768885894600,2.42976364,132.99,132.97,4.33023043]
[1768885895004,2.42976364,132.98,132.96,0.1]
[1768885895298,2.42976364,133.0,132.96,4.33023043]
[1768885895299,4.44016163,133.0,132.96,4.33023043]
[1768885895509,2.42976364,132.97,132.96,0.1]
[1768885895906,2.42976364,132.97,132.94,4.33023043]
[1768885896102,16.46,133.02,132.96,11.75127987]
[1768885896312,16.46,133.02,132.97,4.23023043]
[1768885896609,2.42976364,133.02,132.98,4.23023043]
[1768885896916,2.42976364,133.01,132.98,4.23023043]
[1768885897228,4.44016163,133.03,132.99,4.23023043]
[1768885897740,4.44016163,132.99,132.94,11.85204369]
[1768885897910,2.42976364,132.98,132.94,11.85204369]
[1768885898236,2.42976364,132.97,132.94,11.85204369]
[1768885898408,4.44016163,132.98,132.94,0.1]
[1768885898746,4.44016163,132.98,132.94,4.33023043]
[1768885898908,4.44016163,133.0,132.94,4.33023043]
[1768885899220,2.42976364,132.96,132.95,4.23023043]
[1768885899527,2.42976364,132.99,132.95,4.23023043]
[1768885899742,16.46,133.02,132.96,4.23023043]
[1768885899743,20.90016163,133.02,132.96,4.23023043]
[1768885900023,2.42976364,132.98,132.95,4.23023043]
[1768885900202,4.44016163,133.01,132.96,4.23023043]
[1768885900716,4.44016163,132.99,132.95,4.23023043]
[1768885901117,2.42976364,132.98,132.95,4.23023043]
[1768885901429,4.44016163,133.01,132.96,4.23023043]
[1768885901615,4.44016163,133.01,132.97,4.23023043]
[1768885901813,2.42976364,132.99,132.95,11.75174389]
[1768885902013,2.42976364,132.98,132.95,4.23023043]
[1768885902315,4.2281083,132.98,132.94,4.54084773]
[1768885902627,4.2281083,132.98,132.92,61.6]
[1768885902628,2.42976364,132.95,132.92,4.54084773]
[1768885903242,4.2281083,132.95,132.92,0.1]
[1768885903528,2.42976364,132.94,132.92,0.1]
[1768885903724,6.65787194,132.95,132.92,0.1]
[1768885903912,4.2281083,132.97,132.93,4.44084773]
[1768885904115,2.42976364,132.95,132.92,7.62311681]
[1768885904312,2.42976364,132.95,132.92,12.06396454]
[1768885904902,4.2281083,133.0,132.95,4.44084773]
[1768885905106,4.2281083,133.0,132.96,4.44084773]
[1768885905305,2.42976364,132.99,132.96,4.44084773]
[1768885905729,2.42976364,132.98,132.95,7.52107861]
[1768885905948,2.42976364,132.98,132.95,4.44084773]
[1768885906109,6.65787194,132.98,132.93,23.24665948]
[1768885906428,2.42976364,132.97,132.94,4.44084773]
[1768885906808,4.2281083,132.98,132.92,2.52976364]
[1768885906809,4.2281083,132.94,132.92,0.1]
[1768885907128,4.2281083,132.92,132.86,4.44084773]
[1768885907331,4.2281083,132.89,132.84,4.85798783]
[1768885907503,4.2281083,132.89,132.85,4.44084773]
[1768885907709,2.42976364,132.9,132.87,4.44084773]
[1768885907911,2.42976364,132.9,132.86,11.96749826]
[1768885908116,2.42976364,132.9,132.87,4.44084773]
[1768885908333,4.2281083,132.92,132.86,11.96749826]
[1768885908706,2.42976364,132.9,132.86,11.96749826]
[1768885908915,5.59501693,132.89,132.86,11.96749826]
[1768885909113,4.2281083,132.89,132.84,12.38537346]
[1768885909412,5.59501693,132.86,132.84,0.4171401]
[1768885909620,4.2281083,132.89,132.84,0.4171401]
[1768885909829,5.59501693,132.87,132.84,0.4171401]
[1768885910033,5.59501693,132.86,132.84,0.4171401]
[1768885910329,4.2281083,132.91,132.84,0.4171401]
[1768885910510,4.2281083,132.87,132.82,4.44084773]
[1768885910706,5.70281177,132.85,132.81,4.54084773]
[1768885910910,4.2281083,132.86,132.81,12.07027334]
[1768885911109,4.2281083,132.88,132.82,11.96951938]
[1768885911311,4.2281083,132.88,132.82,4.44084773]
[1768885911543,4.2281083,132.87,132.82,4.44084773]
[1768885911842,4.2281083,132.86,132.82,4.44084773]
[1768885912231,4.2281083,132.86,132.81,13.33225872]
[1768885912232,11.75197547,132.92,132.83,4.44084773]
[1768885912418,9.93092007,132.88,132.83,4.44084773]
[1768885912737,5.70281177,132.87,132.83,4.44084773]
[1768885912940,5.70281177,132.86,132.83,4.44084773]
[1768885913132,5.70281177,132.87,132.83,4.44084773]
[1768885913318,5.70281177,132.87,132.84,7.52785305]
[1768885913521,4.24335694,132.9,132.85,4.30824645]
[1768885913722,9.94616871,132.9,132.85,4.30824645]
[1768885913922,16.48,132.93,132.88,4.30824645]
[1768885914319,22.18281177,132.93,132.88,4.30824645]
[1768885914519,16.48,132.93,132.89,10.01105822]
[1768885914716,9.94616871,132.94,132.89,10.01105822]
[1768885914926,4.24335694,132.96,132.91,10.01105822]
[1768885915113,4.24335694,133.0,132.95,5.70281177]
[1768885915311,4.24335694,133.02,132.97,10.01105822]
[1768885915627,4.24335694,133.02,132.97,4.30824645]
[1768885915825,5.70281177,133.01,132.97,4.30824645]
[1768885916138,4.24335694,133.02,132.97,10.01105822]
[1768885916319,9.94616871,133.02,132.97,10.01105822]
[1768885916518,4.24335694,133.02,132.97,4.30824645]
[1768885916924,9.94616871,133.02,132.97,4.30824645]
[1768885917126,4.24335694,133.02,132.97,4.30824645]
[1768885917432,9.94616871,133.02,132.97,4.30824645]
[1768885917621,4.24335694,132.99,132.93,4.30824645]
[1768885917825,4.24335694,132.96,132.91,11.83213479]
[1768885918013,5.70281177,132.95,132.91,11.83213479]
[1768885918549,5.70281177,132.95,132.87,43.5871917]
[1768885918550,9.94616871,132.94,132.89,4.30824645]
[1768885918716,4.24335694,132.94,132.89,7.525005]
[1768885919033,9.94616871,132.93,132.89,7.525005]
[1768885919238,4.24335694,132.95,132.89,7.525005]
[1768885919439,5.70281177,132.93,132.88,11.83378973]
[1768885919737,5.70281177,132.93,132.89,4.30824645]
[1768885920034,5.70281177,132.94,132.89,4.30824645]
[1768885920239,4.24335694,132.95,132.9,4.30824645]
[1768885920536,4.24335694,132.95,132.9,10.01105822]
[1768885920847,9.94616871,132.95,132.9,4.30824645]
[1768885921030,4.24335694,132.95,132.9,10.01105822]
[1768885921223,5.70281177,132.92,132.88,4.30824645]
[1768885921647,4.24335694,132.94,132.88,10.01105822]
[1768885921829,5.70281177,132.93,132.88,4.30824645]
[1768885922033,5.70281177,132.91,132.87,7.52611741]
[1768885922235,9.94616871,132.92,132.88,7.52543667]
[1768885922551,5.70281177,132.91,132.87,11.83426317]
[1768885922735,9.94616871,132.92,132.88,7.5254589]
[1768885922946,5.70281177,132.91,132.88,7.5254589]
[1768885923123,5.70281177,132.91,132.87,11.83425405]
[1768885923315,4.24335694,132.93,132.87,11.83425405]
[1768885923521,5.70281177,132.92,132.87,17.53706582]
[1768885923716,5.70281177,132.92,132.88,4.30824645]
[1768885923936,9.94616871,132.93,132.88,10.01105822]
[1768885924136,4.24335694,132.93,132.88,10.01105822]
[1768885924336,9.94616871,132.93,132.88,4.30824645]
[1768885924648,4.24335694,132.95,132.89,4.30824645]
[1768885924945,5.70281177,132.93,132.9,4.30824645]
[1768885925145,4.24335694,132.95,132.9,4.30824645]
[1768885925445,5.70281177,132.94,132.9,4.30824645]
[1768885925825,16.48,132.96,132.91,4.30824645]
[1768885926122,5.70281177,132.95,132.91,4.30824645]
[1768885926331,5.70281177,132.94,132.91,4.30824645]
[1768885926529,5.70281177,132.95,132.91,4.30824645]
[1768885926843,5.70281177,132.94,132.91,4.30824645]
[1768885927156,5.70281177,132.95,132.91,4.30824645]
[1768885927449,20.72335694,132.96,132.91,4.30824645]
[1768885927657,5.70281177,132.93,132.89,11.83308194]
[1768885927831,5.70281177,132.92,132.88,11.83344875]
[1768885928146,5.70281177,132.94,132.89,10.01105822]
[1768885928438,4.24335694,132.95,132.89,4.30824645]
[1768885928439,5.70281177,132.93,132.89,4.30824645]
[1768885928647,4.24335694,132.94,132.89,4.30824645]
[1768885929052,5.70281177,132.92,132.89,11.83314945]
[1768885929238,4.24335694,132.94,132.89,11.83314945]
[1768885929544,5.70281177,132.93,132.89,11.83314945]
[1768885929747,4.24335694,132.94,132.89,11.83314945]
[1768885929921,5.70281177,132.93,132.89,11.83314945]
[1768885930124,9.94616871,132.91,132.86,4.30824645]
[1768885930325,9.94616871,132.91,132.86,10.01105822]
[1768885930633,7.52222261,132.94,132.88,4.30824645]
[1768885930634,5.70281177,132.92,132.88,4.30824645]
[1768885930959,5.70281177,132.9,132.86,4.30824645]
[1768885931122,4.24335694,132.92,132.87,11.83424028]
[1768885931325,5.70281177,132.91,132.87,4.30824645]
[1768885931542,7.52266087,132.94,132.88,4.30824645]
[1768885931848,5.70281177,132.92,132.88,11.8337592]
[1768885932142,5.70281177,132.92,132.88,7.52551275]
[1768885932329,4.24335694,132.94,132.89,4.30824645]
[1768885932528,5.70281177,132.92,132.89,4.30824645]
[1768885932729,4.24335694,132.94,132.89,4.30824645]
[1768885932931,5.69638752,132.93,132.89,11.83320814]
[1768885933142,4.24335694,132.94,132.89,11.83320814]
[1768885933446,5.69638752,132.93,132.9,4.30824645]
[1768885933836,4.24335694,132.95,132.9,4.30824645]
[1768885934046,2.46067952,161.39,132.93,5.69638752]
[1768885934047,4.24335694,133.0,132.93,5.69638752]
[1768885934231,4.24335694,132.98,132.9,4.30824645]
[1768885934437,4.24335694,132.98,132.92,10.00463397]
[1768885934623,4.24335694,132.98,132.93,4.30824645]
[1768885934830,4.24335694,132.98,132.93,11.83061967]
[1768885935153,5.69638752,132.97,132.93,11.83061967]
[1768885935339,4.24335694,132.98,132.93,11.83061967]
[1768885935538,5.69638752,132.97,132.93,11.83061967]
[1768885935734,5.69638752,132.95,132.91,4.30824645]
[1768885936135,5.69638752,132.95,132.91,11.83202596]
[1768885936340,5.69638752,132.95,132.91,4.30824645]
[1768885936839,5.69638752,132.94,132.91,4.30824645]
[1768885937653,4.24335694,132.96,132.87,4.30824645]
[1768885937654,9.93974446,132.92,132.87,4.30824645]
[1768885937834,5.69638752,132.9,132.87,11.83397768]
[1768885938147,42.80376103,132.96,132.88,4.30824645]
[1768885938349,5.69638752,132.92,132.88,4.30824645]
[1768885938556,42.80376103,132.96,132.88,4.30824645]
[1768885938746,42.80376103,132.96,132.88,11.83329783]
[1768885938944,5.33327,132.95,132.88,11.83329783]
[1768885939139,5.69638752,132.92,132.88,11.83329783]
[1768885939342,5.69638752,132.91,132.88,11.83329783]
[1768885939657,42.80376103,132.96,132.88,11.83329783]
[1768885939861,11.72121344,132.95,132.89,4.30824645]
[1768885940059,5.69638752,132.94,132.9,4.30824645]
[1768885940450,5.69638752,132.95,132.91,4.30824645]
[1768885940645,5.69638752,132.97,132.93,4.30824645]
[1768885941160,0.7,132.96,132.93,4.30824645]
[1768885941457,4.19944128,133.02,132.93,4.30824645]
[1768885941658,4.19944128,133.0,132.94,4.30824645]
[1768885941854,5.69638752,132.98,132.94,11.83014472]
[1768885942658,5.69638752,132.99,132.95,4.30824645]
[1768885942833,5.69638752,132.97,132.93,11.83084843]
[1768885943033,5.69638752,132.97,132.94,4.30824645]
[1768885943436,5.69638752,132.97,132.93,7.52260198]
[1768885943664,5.69638752,132.97,132.93,11.61606035]
[1768885943845,4.19944128,132.98,132.93,11.61606035]
[1768885944046,5.69638752,132.97,132.93,11.61606035]
[1768885944247,7.51885267,133.0,132.94,4.09345837]
[1768885944549,5.69638752,132.98,132.94,4.09345837]
[1768885944748,5.69638752,132.97,132.94,4.09345837]
[1768885945450,4.19944128,132.99,132.94,4.09345837]
[1768885945638,9.8958288,132.97,132.91,4.09345837]
[1768885945839,5.69638752,132.95,132.92,4.09345837]
[1768885946035,5.69638752,132.95,132.91,7.52354951]
[1768885946262,5.69638752,132.95,132.91,11.61700788]
[1768885946466,4.19944128,132.96,132.91,11.61700788]
[1768885946659,5.69638752,132.95,132.91,11.61700788]
[1768885947169,5.69638752,132.95,132.91,4.09345837]
[1768885947364,5.69638752,132.92,132.87,4.09345837]
[1768885947563,5.69638752,132.91,132.87,4.09345837]
[1768885948261,5.69638752,132.9,132.87,4.09345837]
[1768885948462,11.72276357,132.92,132.87,4.09345837]
[1768885948648,5.69638752,132.9,132.87,4.09345837]
[1768885948962,5.69638752,132.89,132.87,4.09345837]
[1768885949160,11.72276357,132.92,132.87,4.09345837]
[1768885949466,5.69638752,132.88,132.85,4.09345837]
[1768885949661,4.19944128,132.9,132.85,4.09345837]
[1768885949854,5.69638752,132.89,132.85,4.09345837]
[1768885950060,4.19944128,132.9,132.85,4.09345837]
[1768885950360,5.69638752,132.86,132.83,4.09345837]
[1768885950660,5.69638752,132.84,132.81,4.19345837]
[1768885950867,4.19944128,132.88,132.81,4.19345837]
[1768885951099,5.69638752,132.84,132.81,4.19345837]
[1768885951566,5.69638752,132.84,132.78,7.53104617]
[1768885951567,5.69638752,132.82,132.78,4.09345837]
[1768885952746,5.69638752,132.83,132.78,4.09345837]
[1768885953147,5.69638752,132.84,132.79,4.09345837]
[1768885953654,5.69638752,132.83,132.79,4.09345837]
[1768885954254,46.92650242,132.85,132.79,4.09345837]
[1768885954451,5.69638752,132.82,132.79,4.09345837]
[1768885954766,11.62850912,132.84,132.79,4.09345837]
[1768885955063,5.69638752,132.83,132.79,4.09345837]
[1768885955365,24.00746347,132.85,132.8,4.09345837]
[1768885955570,5.69638752,132.84,132.8,4.09345837]
[1768885955863,5.69638752,132.83,132.8,4.09345837]
[1768885956869,20.58044128,132.85,132.8,4.09345837]
[1768885957164,5.69638752,132.83,132.8,4.09345837]
[1768885957773,20.58044128,132.85,132.8,4.09345837]
[1768885958066,5.69638752,132.83,132.8,4.09345837]
[1768885958457,5.69638752,132.82,132.8,4.09345837]
[1768885959167,7.52833887,132.84,132.8,4.09345837]
[1768885959466,5.69638752,132.82,132.8,4.09345837]
[1768885960446,11.62878015,132.84,132.8,4.09345837]
[1768885960845,5.69638752,132.81,132.75,4.09345837]
[1768885961062,30.44841279,132.84,132.76,4.09345837]
[1768885961270,5.69638752,132.82,132.77,4.09345837]
[1768885961674,5.69638752,132.81,132.77,4.09345837]
[1768885962968,5.69638752,132.81,132.74,4.09347871]
[1768885962969,7.52966192,132.81,132.74,4.09347871]
[1768885963174,5.69638752,132.79,132.75,4.09347871]
[1768885963750,11.6301032,132.81,132.75,4.09347871]
[1768885963951,11.63078029,132.8,132.75,4.09347871]
[1768885964162,16.5,132.81,132.76,4.09347871]
[1768885964360,5.69638752,132.8,132.76,4.09347871]
[1768885964678,4.10044128,132.82,132.76,4.09347871]
[1768885964878,5.69638752,132.8,132.76,4.09347871]
[1768885966085,4.10044128,132.82,132.77,4.09347871]
[1768885966086,5.69638752,132.81,132.77,4.09347871]
[1768885966466,11.68834712,132.83,132.77,4.09347871]
[1768885966773,5.69638752,132.81,132.77,4.09347871]
[1768885967959,24.02803834,132.84,132.78,4.09347871]
[1768885968164,5.69638752,132.82,132.78,4.09347871]
[1768885968363,5.69638752,132.82,132.79,4.09347871]
[1768885968571,16.5,132.84,132.79,4.09347871]
[1768885968768,4.15984129,132.87,132.8,4.09347871]
[1768885968956,5.69638752,132.85,132.8,4.09347871]
[1768885969169,24.02637354,132.87,132.81,4.09347871]
[1768885969374,5.69638752,132.86,132.81,4.09347871]
[1768885969580,5.69638752,132.87,132.83,4.09347871]
[1768885969880,11.68535853,132.89,132.83,4.09347871]
[1768885970258,5.69638752,132.87,132.83,4.09347871]
[1768885970576,11.68535853,132.89,132.83,4.09347871]
[1768885970767,5.69638752,132.87,132.83,4.09347871]
[1768885970969,7.52551724,132.89,132.83,4.09347871]
[1768885971175,5.69638752,132.88,132.84,4.09347871]
[1768885971357,28.18447823,132.9,132.84,4.09347871]
[1768885971562,11.68336806,132.92,132.87,4.09347871]
[1768885971761,5.69638752,132.91,132.87,4.09347871]
[1768885972165,11.68203335,132.94,132.88,4.09347871]
[1768885972365,5.69638752,132.92,132.88,4.09347871]
[1768885972882,5.69638752,132.94,132.9,4.09347871]
[1768885973270,16.5,132.95,132.9,4.09347871]
[1768885973470,5.69638752,132.94,132.9,4.09347871]
[1768885974477,11.68159344,132.95,132.9,4.09347871]
[1768885974679,5.69638752,132.93,132.9,4.09347871]
[1768885974884,11.68159344,132.95,132.9,4.09347871]
[1768885975184,5.69638752,132.94,132.9,4.09347871]
[1768885975361,11.68159344,132.95,132.9,4.09347871]
[1768885975561,5.69638752,132.94,132.9,4.09347871]
[1768885976464,5.69638752,132.93,132.9,4.09347871]
[1768885976665,4.15984129,132.95,132.9,4.09347871]
[1768885976866,5.69638752,132.94,132.9,4.09347871]
[1768885977682,5.69638752,132.95,132.91,4.35721633]
[1768885978092,5.69638752,132.94,132.91,4.35721633]
[1768885978588,5.69638752,132.92,132.89,4.35721633]
[1768885978775,5.69638752,132.93,132.89,4.35721633]
[1768885978974,5.69638752,132.93,132.9,4.35721633]
[1768885979178,5.69638752,132.92,132.9,4.35721633]
[1768885979683,5.69638752,132.93,132.9,4.35721633]
[1768885979885,7.52175281,132.95,132.88,11.88279619]
[1768885980081,5.69638752,132.92,132.88,11.88269643]
[1768885980264,4.15984129,132.93,132.89,4.35721633]
[1768885980465,5.69638752,132.92,132.89,4.35721633]
[1768885980665,11.68262238,132.93,132.87,4.35721633]
[1768885980866,5.69638752,132.91,132.88,4.35721633]
[1768885981287,11.68262238,132.93,132.88,4.35721633]
[1768885981670,5.69638752,132.92,132.88,4.35721633]
[1768885982282,5.69638752,132.91,132.88,4.35721633]
[1768885982776,11.68262238,132.93,132.88,4.35721633]
[1768885983092,5.69638752,132.91,132.88,4.35721633]
[1768885983612,4.15984129,132.92,132.88,4.35721633]
[1768885983780,5.69638752,132.91,132.88,4.35721633]
[1768885985575,9.85622881,132.91,132.86,4.35721633]
[1768885985781,9.85622881,132.91,132.84,4.35721633]
[1768885985782,5.69638752,132.88,132.84,4.35721633]
[1768885985981,9.85622881,132.89,132.85,4.35721633]
[1768885986383,4.15984129,132.9,132.85,4.35721633]
[1768885986583,5.69638752,132.89,132.85,4.35721633]
[1768885987001,16.48,132.92,132.87,4.35721633]
[1768885987203,5.69638752,132.91,132.87,11.88300201]
[1768885987514,5.69638752,132.91,132.8,80.87003853]
[1768885987515,5.34408856,132.88,132.78,9.88193152]
[1768885987672,5.69638752,132.79,132.71,23.66527242]
[1768885987877,5.69638752,132.72,132.71,23.66527242]
[1768885988071,5.69638752,132.72,132.71,40.14527242]
[1768885988272,5.69638752,132.74,132.71,23.66527242]
[1768885988496,5.34408856,132.83,132.72,16.48]
[1768885988666,5.69638752,132.73,132.72,16.48]
[1768885988997,5.69638752,132.73,132.71,23.66527242]
[1768885989197,5.69638752,132.72,132.71,23.66527242]
[1768885989393,5.69638752,132.72,132.63,18.84893315]
[1768885989569,5.69638752,132.77,132.71,16.48]
[1768885989570,7.53394589,132.74,132.71,16.48]
[1768885989775,5.69638752,132.72,132.68,4.35721633]
[1768885989986,5.69638752,132.71,132.68,4.35721633]
[1768885990188,5.69638752,132.71,132.7,16.58]
[1768885991204,7.53394589,132.74,132.7,0.1]
[1768885991371,5.69638752,132.71,132.7,16.6]
[1768885991578,16.5,132.83,132.71,4.35721633]
[1768885991779,5.69638752,132.73,132.71,4.35721633]
[1768885992196,5.69638752,132.74,132.71,4.35721633]
[1768885992806,5.69638752,132.75,132.71,4.35721633]
[1768885993177,4.1623405,132.78,132.72,20.85721633]
[1768885993472,4.1623405,132.77,132.7,4.45721633]
[1768885993667,7.53238927,132.76,132.73,16.5]
[1768885993892,7.53238927,132.76,132.74,16.5]
[1768885994096,4.12071709,132.75,132.7,0.1]
[1768885994300,4.12071709,132.75,132.7,16.6]
[1768885994682,4.12071709,132.75,132.7,20.95721633]
[1768885994882,5.7136951,132.72,132.7,20.95721633]
[1768885995310,5.7136951,132.72,132.7,4.45721633]
[1768885995492,5.7136951,132.72,132.7,20.95721633]
[1768885995686,11.65386666,132.75,132.7,20.95721633]
[1768885995887,5.34408856,132.81,132.7,20.95721633]
[1768885995888,4.12071709,132.78,132.72,4.35721633]
[1768885996081,5.7136951,132.73,132.7,0.1]
[1768885996397,4.12071709,132.74,132.7,16.6]
[1768885996398,5.7136951,132.72,132.7,16.6]
[1768885996601,4.21369509,132.72,132.7,16.6]
[1768885997095,5.7136951,132.71,132.7,16.6]
[1768885997295,5.7136951,132.71,132.7,0.1]
[1768885997495,5.7136951,132.71,132.7,16.6]
[1768885997690,5.7136951,132.71,132.7,0.1]
[1768885999285,4.12071709,132.73,132.7,0.1]
[1768885999591,11.65386627,132.75,132.7,0.1]
[1768885999793,5.7136951,132.72,132.7,0.1]
[1768886000375,5.7136951,132.72,132.7,16.6]
[1768886001006,4.12071709,132.74,132.7,16.6]
[1768886001394,5.7136951,132.72,132.7,16.6]
[1768886001985,4.12071709,132.74,132.7,16.6]
[1768886002204,5.7136951,132.72,132.7,0.1]
[1768886002509,5.7136951,132.72,132.7,16.6]
[1768886003004,4.12071709,132.74,132.7,16.6]
[1768886003206,5.7136951,132.72,132.7,16.6]
[1768886003390,5.7136951,132.72,132.7,0.1]
[1768886003598,5.7136951,132.72,132.7,16.6]
[1768886003790,5.7136951,132.72,132.71,16.5]
[1768886003990,5.7136951,132.72,132.7,0.1]
[1768886004195,5.7136951,132.71,132.7,0.1]
[1768886006608,4.07924331,132.73,132.7,0.1]
[1768886006816,5.7136951,132.71,132.7,0.1]
[1768886009707,4.07924331,132.73,132.7,0.1]
[1768886010217,5.7136951,132.71,132.7,0.1]
[1768886010714,5.7136951,132.71,132.7,16.6]
[1768886011220,5.7136951,132.72,132.7,16.6]
[1768886011515,5.7136951,132.71,132.7,16.6]
[1768886013014,4.07924331,132.74,132.7,16.6]
[1768886013513,5.7136951,132.71,132.7,16.6]
[1768886013715,5.6536951,132.71,132.7,16.6]
[1768886014614,5.7136951,132.71,132.7,16.6]
[1768886014991,5.7136951,132.71,132.7,0.1]
[1768886015194,4.07924331,132.73,132.7,0.1]
[1768886015405,5.7136951,132.72,132.7,0.1]
[1768886015804,4.07924331,132.72,132.66,5.98992851]
[1768886015990,5.7136951,132.71,132.67,24.03713994]
[1768886016711,4.07924331,132.72,132.68,24.03690941]
[1768886016912,5.7136951,132.71,132.68,24.03690941]